bitfinex/quotes_BTCUSD_20230905
["timestamp","ask_amount","ask_price","bid_price","bid_amount"]
[1693933444422,0.003,25741.0,25740.0,2.5396111]
[1693933445513,0.003,25741.0,25740.0,2.6101111]
[1693933445795,0.003,25741.0,25740.0,2.5396111]
[1693933447416,0.003,25741.0,25740.0,1.7626111]
[1693933447588,0.003,25741.0,25740.0,1.6601111]
[1693933449451,0.003,25741.0,25740.0,0.8831111]
[1693933453692,0.003,25741.0,25740.0,2.5396111]
[1693933458124,0.003,25741.0,25740.0,0.1061291]
[1693933458345,0.003,25741.0,25740.0,0.8831291]
[1693933465238,0.003,25741.0,25740.0,0.8031291]
[1693933469188,3.21144458,25741.0,25740.0,0.0261291]
[1693933471289,2.43447458,25741.0,25740.0,0.0261291]
[1693933471499,1.45984507,25741.0,25740.0,0.0261291]
[1693933471707,0.083,25741.0,25740.0,0.0261291]
[1693933472145,0.083,25741.0,25740.0,0.8031291]
[1693933474784,0.083,25741.0,25740.0,1.5801291]
[1693933475537,0.083,25741.0,25740.0,0.8031291]
[1693933477723,0.083,25741.0,25740.0,0.0261291]
[1693933477724,0.85997,25741.0,25740.0,0.0261291]
[1693933480020,0.083,25741.0,25740.0,1.5801291]
[1693933480620,0.083,25741.0,25740.0,2.3571291]
[1693933481023,0.043,25741.0,25740.0,2.3571291]
[1693933481226,0.083,25741.0,25740.0,2.3571291]
[1693933482617,0.003,25741.0,25740.0,2.4596291]
[1693933485589,0.003,25741.0,25740.0,3.2722091]
[1693933485794,0.003,25741.0,25740.0,3.76701437]
[1693933486058,0.003,25741.0,25740.0,3.75993437]
[1693933486477,0.001,25741.0,25740.0,3.74809437]
[1693933486666,0.02,25744.0,25741.0,0.08]
[1693933486880,0.02,25744.0,25743.0,0.1025]
[1693933487080,0.02,25744.0,25743.0,1.65632]
[1693933488655,0.022,25744.0,25743.0,1.65632]
[1693933489080,0.02,25744.0,25743.0,1.65632]
[1693933489277,0.024,25744.0,25743.0,1.65732]
[1693933489829,0.035,25744.0,25743.0,1.65832]
[1693933490235,0.035,25744.0,25743.0,1.55582]
[1693933491044,0.97752157,25744.0,25743.0,0.002]
[1693933491226,1.17950232,25744.0,25743.0,0.002]
[1693933491433,0.97752157,25744.0,25743.0,0.002]
[1693933492289,0.20064157,25744.0,25743.0,0.002]
[1693933492439,0.18064157,25744.0,25743.0,0.002]
[1693933492645,0.20064157,25744.0,25743.0,0.002]
[1693933495562,0.035,25744.0,25743.0,0.002]
[1693933495783,0.015,25744.0,25743.0,0.15665811]
[1693933495995,0.015,25744.0,25743.0,3.49734811]
[1693933496204,0.015,25744.0,25743.0,3.76980814]
[1693933496412,0.015,25744.0,25743.0,3.76644814]
[1693933496620,0.015,25744.0,25743.0,3.74596814]
[1693933496831,0.015,25744.0,25743.0,3.68626814]
[1693933497029,0.015,25744.0,25743.0,3.68608814]
[1693933497232,0.015,25744.0,25743.0,3.68626814]
[1693933497437,0.015,25744.0,25743.0,3.68536814]
[1693933497637,0.011,25744.0,25743.0,3.69126814]
[1693933497862,0.013,25744.0,25743.0,3.70740814]
[1693933498083,0.02,25747.0,25743.0,3.68750814]
[1693933498292,0.02,25747.0,25746.0,0.1025]
[1693933498505,0.02,25747.0,25746.0,2.432957]
[1693933498702,0.04,25747.0,25746.0,2.432957]
[1693933499114,0.06,25747.0,25746.0,2.432957]
[1693933499320,0.062,25747.0,25746.0,2.432957]
[1693933499748,0.06,25747.0,25746.0,2.432957]
[1693933500182,0.06,25747.0,25746.0,2.448957]
[1693933500183,0.041,25747.0,25746.0,2.448957]
[1693933500405,0.023,25747.0,25746.0,2.466957]
[1693933500616,0.003,25747.0,25746.0,3.47670227]
[1693933500825,0.003,25747.0,25746.0,3.95033514]
[1693933501009,0.003,25747.0,25746.0,3.94247514]
[1693933501235,0.003,25747.0,25746.0,4.64421514]
[1693933501440,0.003,25747.0,25746.0,4.53943514]
[1693933501646,0.001,25747.0,25746.0,4.52179514]
[1693933501848,0.02,25752.0,25747.0,0.5077]
[1693933502062,0.02,25752.0,25751.0,0.1025]
[1693933502291,0.02,25752.0,25751.0,1.655836]
[1693933502924,0.02,25752.0,25751.0,2.432504]
[1693933503516,0.022,25752.0,25751.0,2.432504]
[1693933503812,0.02,25752.0,25751.0,2.432504]
[1693933504216,0.021,25752.0,25751.0,2.442504]
[1693933505069,0.001,25752.0,25751.0,2.442504]
[1693933505513,0.001,25752.0,25751.0,2.797984]
[1693933505777,0.001,25752.0,25751.0,2.790424]
[1693933505983,0.001,25752.0,25751.0,2.791564]
[1693933506200,0.001,25752.0,25751.0,2.786604]
[1693933506411,0.001,25752.0,25751.0,2.791764]
[1693933506623,0.002,25752.0,25751.0,2.803704]
[1693933506826,0.001,25752.0,25751.0,2.793224]
[1693933507081,0.002,25752.0,25751.0,2.810344]
[1693933507293,0.002,25752.0,25751.0,2.830284]
[1693933507503,0.002,25752.0,25751.0,2.831304]
[1693933507762,0.002,25752.0,25751.0,2.831184]
[1693933507975,0.002,25752.0,25751.0,2.831244]
[1693933508202,0.002,25752.0,25751.0,2.831124]
[1693933508417,0.002,25752.0,25751.0,2.834004]
[1693933508616,0.002,25752.0,25751.0,2.840844]
[1693933508823,0.002,25752.0,25751.0,2.840304]
[1693933509032,0.002,25752.0,25751.0,2.838564]
[1693933509449,0.002,25752.0,25751.0,2.836104]
[1693933509672,0.002,25752.0,25751.0,2.831724]
[1693933509883,0.002,25752.0,25751.0,2.831604]
[1693933510087,0.002,25752.0,25751.0,2.835864]
[1693933510297,0.002,25752.0,25751.0,2.835744]
[1693933510502,0.002,25752.0,25751.0,2.831424]
[1693933510704,0.002,25752.0,25751.0,2.827344]
[1693933511136,0.002,25752.0,25751.0,3.62880927]
[1693933511342,0.002,25752.0,25751.0,4.34716927]
[1693933511551,0.002,25752.0,25751.0,4.34476927]
[1693933511753,0.002,25752.0,25751.0,4.33528927]
[1693933511934,0.001,25752.0,25751.0,4.31854927]
[1693933512143,0.001,25752.0,25751.0,4.31170927]
[1693933512360,0.001,25752.0,25751.0,4.32074927]
[1693933512569,0.001,25752.0,25751.0,4.25384927]
[1693933512772,0.001,25752.0,25751.0,4.22884927]
[1693933513185,0.02,25756.0,25751.0,4.23684927]
[1693933513394,0.001,25752.0,25751.0,4.31400738]
[1693933513575,0.001,25752.0,25751.0,4.26184927]
[1693933513771,0.001,25752.0,25751.0,3.56184927]
[1693933514708,0.001,25752.0,25751.0,3.53684927]
[1693933515314,0.16082162,25752.0,25751.0,3.129204]
[1693933515532,0.001,25752.0,25751.0,3.149204]
[1693933515739,0.001,25752.0,25751.0,3.050204]
[1693933516197,0.001,25752.0,25751.0,3.075204]
[1693933521150,0.001,25752.0,25751.0,1.725836]
[1693933524547,0.001,25752.0,25751.0,2.11248127]
[1693933524779,0.02,25757.0,25752.0,0.5077]
[1693933524992,0.0248,25758.0,25756.0,0.1025]
[1693933525202,0.0248,25758.0,25757.0,1.70763211]
[1693933525203,0.02,25758.0,25757.0,1.70763211]
[1693933525627,0.02,25758.0,25757.0,1.552974]
[1693933526239,0.320662,25761.0,25757.0,1.552974]
[1693933526447,0.02,25759.0,25757.0,2.55437911]
[1693933526656,0.02,25759.0,25758.0,0.1025]
[1693933526868,0.02,25759.0,25758.0,0.878957]
[1693933528148,0.02,25759.0,25758.0,0.883957]
[1693933529450,0.02,25759.0,25758.0,0.884957]
[1693933532815,0.02,25759.0,25758.0,2.437871]
[1693933533001,0.04953297,25759.0,25758.0,2.457871]
[1693933533619,0.02,25759.0,25758.0,2.457871]
[1693933534064,0.04970011,25759.0,25758.0,2.457871]
[1693933534468,0.04970011,25759.0,25758.0,2.451871]
[1693933534676,0.04970011,25759.0,25758.0,2.575191]
[1693933534677,0.02970011,25759.0,25758.0,2.575191]
[1693933534874,0.02970011,25759.0,25758.0,3.279991]
[1693933535101,0.02,25761.0,25760.0,0.1025]
[1693933535312,0.02,25761.0,25760.0,2.431691]
[1693933535515,0.02,25762.0,25760.0,2.431691]
[1693933535724,0.1666,25763.0,25760.0,2.329191]
[1693933535725,0.02,25761.0,25760.0,2.329191]
[1693933535922,0.02,25761.0,25760.0,2.451691]
[1693933536094,0.04961362,25761.0,25760.0,2.451691]
[1693933536367,0.04961362,25761.0,25760.0,2.554191]
[1693933536746,0.04961362,25761.0,25760.0,2.576191]
[1693933537090,0.04961362,25761.0,25760.0,2.554191]
[1693933537304,0.02961362,25761.0,25760.0,2.554191]
[1693933537509,0.02961362,25761.0,25760.0,3.276191]
[1693933537713,0.02961362,25761.0,25760.0,3.342071]
[1693933537900,0.02,25762.0,25760.0,3.276191]
[1693933538103,0.02,25762.0,25761.0,0.1025]
[1693933538305,0.02,25762.0,25761.0,2.431601]
[1693933538864,0.04921341,25762.0,25761.0,2.431601]
[1693933539049,0.04921341,25762.0,25761.0,2.441601]
[1693933539494,0.04921341,25762.0,25761.0,2.454601]
[1693933540101,0.04921341,25762.0,25761.0,1.678234]
[1693933540822,0.04921341,25762.0,25761.0,1.6743734]
[1693933541848,0.04921341,25762.0,25761.0,2.4507404]
[1693933542631,0.04921341,25762.0,25761.0,1.6743734]
[1693933546470,0.04921341,25762.0,25761.0,0.8980064]
[1693933548164,0.22886299,25762.0,25761.0,0.023]
[1693933548365,0.22886299,25762.0,25761.0,0.901867]
[1693933549577,0.22886299,25762.0,25761.0,0.1255]
[1693933552297,0.22886299,25762.0,25761.0,0.023]
[1693933552298,1.60188741,25762.0,25761.0,0.023]
[1693933552495,1.76395807,25762.0,25761.0,0.023]
[1693933553526,2.82486968,25762.0,25761.0,0.023]
[1693933553744,3.1464306,25762.0,25761.0,0.023]
[1693933553945,3.57935319,25762.0,25761.0,0.023]
[1693933554145,3.67975019,25762.0,25761.0,0.023]
[1693933554352,3.91118162,25762.0,25761.0,0.023]
[1693933554582,3.72595103,25762.0,25761.0,0.013]
[1693933554807,3.72595103,25762.0,25761.0,0.015]
[1693933555684,4.06595103,25762.0,25761.0,0.015]
[1693933555935,3.83441273,25762.0,25761.0,0.015]
[1693933556136,3.83441273,25762.0,25761.0,0.002]
[1693933556377,3.83541273,25762.0,25761.0,0.004]
[1693933556583,4.00101273,25762.0,25761.0,0.004]
[1693933556765,3.83541273,25762.0,25761.0,0.004]
[1693933557432,0.02,25752.0,25750.0,1.251]
[1693933557643,0.02,25751.0,25750.0,0.9896]
[1693933557865,0.796668,25751.0,25748.0,1.553491]
[1693933558072,0.796668,25751.0,25749.0,1.89632612]
[1693933558274,0.82673859,25751.0,25749.0,0.776723]
[1693933558497,2.86921986,25751.0,25747.0,1.812645]
[1693933558961,2.86921986,25751.0,25747.0,1.71570246]
[1693933559164,3.22045934,25751.0,25747.0,1.71570246]
[1693933559444,0.21063142,25750.0,25749.0,0.025]
[1693933559627,3.00737369,25750.0,25749.0,0.025]
[1693933559864,3.10987369,25750.0,25747.0,0.025]
[1693933560287,0.02,25748.0,25747.0,0.025]
[1693933560493,0.796759,25748.0,25747.0,0.025]
[1693933560700,0.796759,25748.0,25746.0,0.776819]
[1693933561240,0.796759,25748.0,25747.0,0.025]
[1693933561645,0.796759,25748.0,25745.0,1.035948]
[1693933561646,1.71170571,25748.0,25745.0,1.035948]
[1693933561848,0.02,25746.0,25745.0,0.2591]
[1693933562287,0.02,25746.0,25744.0,1.553725]
[1693933562456,0.02,25745.0,25744.0,1.817725]
[1693933563712,0.022,25745.0,25744.0,1.842725]
[1693933564648,0.024,25745.0,25744.0,1.867725]
[1693933565419,0.05787708,25745.0,25744.0,1.867725]
[1693933566292,0.2435179,25745.0,25744.0,1.090859]
[1693933567407,0.43548179,25745.0,25744.0,1.090859]
[1693933567614,0.43548179,25745.0,25744.0,0.314]
[1693933567835,0.43548179,25745.0,25744.0,1.09088]
[1693933569725,0.43548179,25745.0,25744.0,0.314]
[1693933571132,2.92852879,25745.0,25744.0,0.05]
[1693933571592,3.31517406,25745.0,25744.0,0.05]
[1693933572152,3.12953324,25745.0,25744.0,0.05]
[1693933572641,3.12953324,25745.0,25744.0,0.025]
[1693933572642,3.12753324,25745.0,25744.0,0.025]
[1693933572850,3.12553324,25745.0,25741.0,0.2584]
[1693933573053,0.04,25742.0,25740.0,0.0161291]
[1693933573254,1.96058527,25741.0,25740.0,0.0161291]
[1693933574311,2.11807027,25741.0,25740.0,0.0341291]
[1693933574710,2.11907027,25741.0,25740.0,0.0481291]
[1693933576574,1.34210027,25741.0,25740.0,0.0481291]
[1693933578152,0.56513027,25741.0,25740.0,0.0481291]
[1693933578352,0.56513027,25741.0,25740.0,1.16806483]
[1693933580587,0.59880687,25741.0,25740.0,1.16806483]
[1693933581016,0.2121616,25741.0,25740.0,2.72206483]
[1693933581228,0.0566766,25741.0,25740.0,3.60156483]
[1693933581434,0.0566766,25741.0,25740.0,3.66720483]
[1693933581695,0.0566766,25741.0,25740.0,3.60156483]
[1693933581898,0.0566766,25741.0,25740.0,3.66786483]
[1693933582117,0.0566766,25741.0,25740.0,3.67458483]
[1693933582321,0.0566766,25741.0,25740.0,3.49906483]
[1693933584507,0.0566766,25741.0,25740.0,1.94506483]
[1693933585498,0.11909453,25741.0,25740.0,1.16806483]
[1693933585898,0.0566766,25741.0,25740.0,1.94506483]
[1693933586107,0.0566766,25741.0,25740.0,2.72206483]
[1693933586428,0.0566766,25741.0,25740.0,1.94506483]
[1693933589053,0.0566766,25741.0,25740.0,1.16806483]
[1693933595818,0.8336466,25741.0,25740.0,1.16806483]
[1693933596022,1.01131444,25741.0,25740.0,1.16806483]
[1693933596228,2.06033507,25741.0,25740.0,1.16806483]
[1693933596663,1.78828444,25741.0,25740.0,1.16806483]
[1693933604015,0.8336466,25741.0,25740.0,1.16806483]
[1693933604351,0.0566766,25741.0,25740.0,1.16806483]
[1693933604964,0.0566766,25741.0,25740.0,1.94506483]
[1693933605528,0.0566766,25741.0,25740.0,2.72206483]
[1693933609317,0.0566766,25741.0,25740.0,3.60156483]
[1693933610792,0.0566766,25741.0,25740.0,4.37026483]
[1693933610996,0.023,25741.0,25740.0,4.37068483]
[1693933611208,0.023,25741.0,25740.0,4.37200483]
[1693933611394,0.023,25741.0,25740.0,4.37098483]
[1693933611613,0.023,25741.0,25740.0,4.46346208]
[1693933611847,0.003,25741.0,25740.0,4.37014483]
[1693933612053,0.003,25741.0,25740.0,4.36954483]
[1693933612054,0.023,25741.0,25740.0,4.36954483]
[1693933612264,0.023,25741.0,25740.0,4.36738483]
[1693933612461,0.023,25741.0,25740.0,4.30156483]
[1693933612892,0.023,25741.0,25740.0,3.60156483]
[1693933613557,0.05782981,25741.0,25740.0,3.60156483]
[1693933614263,0.05782981,25741.0,25740.0,2.82456483]
[1693933614630,0.05782981,25741.0,25740.0,1.16806483]
[1693933614839,0.05782981,25741.0,25740.0,1.94506483]
[1693933616748,0.05782981,25741.0,25740.0,2.72206483]
[1693933617951,0.05782981,25741.0,25740.0,3.60156483]
[1693933624270,0.05782981,25741.0,25740.0,4.37416483]
[1693933624547,0.05782981,25741.0,25740.0,4.36882483]
[1693933624717,0.023,25741.0,25740.0,4.30156483]
[1693933625062,0.06091302,25741.0,25740.0,4.30156483]
[1693933627071,0.04091302,25741.0,25740.0,4.37320483]
[1693933627313,0.04091302,25741.0,25740.0,4.93854022]
[1693933627485,0.003,25741.0,25740.0,4.93056022]
[1693933627668,0.003,25741.0,25740.0,5.33257893]
[1693933627866,0.003,25741.0,25740.0,5.33275893]
[1693933628068,0.003,25741.0,25740.0,5.33245893]
[1693933628268,0.001,25741.0,25740.0,5.31415893]
[1693933628476,0.001,25741.0,25740.0,5.31433893]
[1693933628692,0.02,25743.0,25740.0,5.39337121]
[1693933628904,0.02,25743.0,25742.0,0.1025]
[1693933629102,0.02,25743.0,25742.0,4.33019573]
[1693933629676,0.021,25743.0,25742.0,4.33019573]
[1693933630327,0.02,25743.0,25742.0,4.33619573]
[1693933630532,0.02,25743.0,25742.0,2.68281573]
[1693933631116,0.02,25743.0,25742.0,1.12893573]
[1693933631314,0.02,25743.0,25742.0,1.90587573]
[1693933633920,0.02,25743.0,25742.0,3.56225573]
[1693933637896,0.02,25743.0,25742.0,4.26225573]
[1693933639357,0.02,25743.0,25742.0,3.56225573]
[1693933640597,0.0560159,25743.0,25742.0,1.90587573]
[1693933643562,0.0560159,25743.0,25742.0,1.90577384]
[1693933645914,0.0560159,25743.0,25742.0,0.78594]
[1693933646519,0.0560159,25743.0,25742.0,1.90579355]
[1693933649272,0.0560159,25743.0,25742.0,1.90079355]
[1693933650150,0.0560159,25743.0,25742.0,0.78094]
[1693933654224,3.13195293,25743.0,25742.0,0.004]
[1693933654380,3.54800374,25743.0,25742.0,0.004]
[1693933654586,3.40908792,25743.0,25742.0,0.004]
[1693933654807,3.22456348,25743.0,25742.0,0.004]
[1693933655011,3.57027832,25743.0,25742.0,0.001]
[1693933655225,3.3774793,25743.0,25742.0,0.002]
[1693933655423,3.58714549,25743.0,25742.0,0.001]
[1693933655827,3.46022967,25743.0,25742.0,0.002]
[1693933657766,3.06905736,25743.0,25742.0,0.002]
[1693933658176,2.29214736,25743.0,25742.0,0.002]
[1693933659473,0.35168209,25743.0,25742.0,0.002]
[1693933659677,1.12859209,25743.0,25742.0,0.002]
[1693933660088,0.1420159,25743.0,25742.0,0.002]
[1693933661569,0.1420159,25743.0,25742.0,2.43532]
[1693933663647,0.0820159,25743.0,25742.0,2.43532]
[1693933663851,0.0820159,25743.0,25742.0,2.50252]
[1693933664057,0.0620159,25743.0,25742.0,2.50216]
[1693933664235,0.0820159,25743.0,25742.0,2.50108]
[1693933664448,0.0820159,25743.0,25742.0,2.43532]
[1693933665312,0.0620159,25743.0,25742.0,2.51434]
[1693933665507,0.0620159,25743.0,25742.0,2.51764]
[1693933665717,0.0620159,25743.0,25742.0,3.21722]
[1693933665925,0.0620159,25743.0,25742.0,3.21698]
[1693933666130,0.014,25743.0,25742.0,3.2152]
[1693933666334,0.014,25743.0,25742.0,3.21942]
[1693933666538,0.02,25744.0,25742.0,4.33869806]
[1693933666743,0.03530378,25743.0,25742.0,3.11098]
[1693933666945,0.03530378,25743.0,25742.0,4.33350284]
[1693933667149,0.03530378,25743.0,25742.0,4.72002811]
[1693933667379,0.03530378,25743.0,25742.0,4.73432811]
[1693933667595,0.05530378,25743.0,25742.0,4.73138811]
[1693933667803,0.05530378,25743.0,25742.0,4.72898811]
[1693933668012,0.05630378,25743.0,25742.0,4.74136811]
[1693933668172,0.05630378,25743.0,25742.0,4.67674811]
[1693933668575,0.05630378,25743.0,25742.0,3.55696527]
[1693933668775,0.05630378,25743.0,25742.0,3.55396527]
[1693933668977,0.05730378,25743.0,25742.0,3.56496527]
[1693933669179,0.05730378,25743.0,25742.0,2.86496527]
[1693933670248,0.05730378,25743.0,25742.0,2.45832]
[1693933673948,0.05730378,25743.0,25742.0,2.35582]
[1693933674159,0.05730378,25743.0,25742.0,2.45832]
[1693933681246,0.03730378,25743.0,25742.0,2.47832]
[1693933681433,0.03730378,25743.0,25742.0,2.55998]
[1693933681673,0.03730378,25743.0,25742.0,2.5577]
[1693933681794,0.002,25743.0,25742.0,2.55548]
[1693933682165,0.04006494,25743.0,25742.0,2.555]
[1693933682384,0.04006494,25743.0,25742.0,2.55512]
[1693933682563,0.04006494,25743.0,25742.0,3.25746]
[1693933682767,0.04006494,25743.0,25742.0,3.2562]
[1693933683066,0.04006494,25743.0,25742.0,3.2604]
[1693933683277,0.04006494,25743.0,25742.0,3.24786]
[1693933683647,0.04006494,25743.0,25742.0,3.24738]
[1693933683848,0.04006494,25743.0,25742.0,3.24714]
[1693933684054,0.04006494,25743.0,25742.0,3.2469]
[1693933684252,0.04006494,25743.0,25742.0,3.2487]
[1693933684460,0.04006494,25743.0,25742.0,3.24858]
[1693933684683,0.04006494,25743.0,25742.0,3.24828]
[1693933684854,0.04006494,25743.0,25742.0,3.24768]
[1693933685088,0.04006494,25743.0,25742.0,3.64542527]
[1693933685448,0.04006494,25743.0,25742.0,4.06050527]
[1693933685657,0.04006494,25743.0,25742.0,4.06032527]
[1693933685861,0.04006494,25743.0,25742.0,4.05858527]
[1693933686073,0.002,25743.0,25742.0,4.05216527]
[1693933686292,0.002,25743.0,25742.0,4.04394527]
[1693933686496,0.002,25743.0,25742.0,4.04028527]
[1693933686708,0.03405669,25743.0,25742.0,4.03830527]
[1693933686915,0.03405669,25743.0,25742.0,3.97266527]
[1693933687123,0.03405669,25743.0,25742.0,4.03800527]
[1693933687273,0.03405669,25743.0,25742.0,4.03812527]
[1693933687483,0.03405669,25743.0,25742.0,4.03848527]
[1693933687856,0.03405669,25743.0,25742.0,3.56496527]
[1693933688060,0.03405669,25743.0,25742.0,2.45832]
[1693933702136,0.03405669,25743.0,25742.0,3.15832]
[1693933704051,0.03405669,25743.0,25742.0,2.45832]
[1693933710492,0.03405669,25743.0,25742.0,1.57888]
[1693933713033,0.03405669,25743.0,25742.0,2.35582]
[1693933714281,0.25749438,25743.0,25742.0,0.025]
[1693933714487,0.33497052,25743.0,25742.0,0.025]
[1693933714689,1.11188052,25743.0,25742.0,0.025]
[1693933715275,1.03440438,25743.0,25742.0,0.025]
[1693933716351,1.04603484,25743.0,25742.0,0.025]
[1693933720780,0.26912484,25743.0,25742.0,0.025]
[1693933721116,0.06568715,25743.0,25742.0,0.025]
[1693933721515,0.06568715,25743.0,25742.0,1.57888]
[1693933721791,0.06568715,25743.0,25742.0,2.35582]
[1693933722137,0.06568715,25743.0,25742.0,2.45832]
[1693933725006,0.06568715,25743.0,25742.0,3.15832]
[1693933725918,0.06568715,25743.0,25742.0,3.2371]
[1693933726128,0.06568715,25743.0,25742.0,3.23548]
[1693933726365,0.06568715,25743.0,25742.0,3.23422]
[1693933726563,0.06568715,25743.0,25742.0,3.23398]
[1693933726762,0.06568715,25743.0,25742.0,3.23368]
[1693933726976,0.06568715,25743.0,25742.0,3.22702]
[1693933727175,0.06568715,25743.0,25742.0,3.22804]
[1693933727399,0.06568715,25743.0,25742.0,3.22546]
[1693933727529,0.06568715,25743.0,25742.0,3.15832]
[1693933730668,0.04568715,25743.0,25742.0,3.15832]
[1693933730845,0.04568715,25743.0,25742.0,3.2577]
[1693933731066,0.04568715,25743.0,25742.0,3.25224]
[1693933731310,0.04568715,25743.0,25742.0,3.17832]
[1693933731514,0.06568715,25743.0,25742.0,3.24504]
[1693933731722,0.06568715,25743.0,25742.0,3.17832]
[1693933732636,0.06568715,25743.0,25742.0,3.24882]
[1693933732838,0.06568715,25743.0,25742.0,3.24858]
[1693933733044,0.06568715,25743.0,25742.0,3.24864]
[1693933733212,0.06568715,25743.0,25742.0,3.25086]
[1693933733390,0.06568715,25743.0,25742.0,3.25068]
[1693933733603,0.06568715,25743.0,25742.0,3.25128]
[1693933733796,0.06568715,25743.0,25742.0,3.25134]
[1693933734001,0.06568715,25743.0,25742.0,3.2511]
[1693933734202,0.06568715,25743.0,25742.0,3.25056]
[1693933734396,0.06568715,25743.0,25742.0,3.25074]
[1693933734597,0.06568715,25743.0,25742.0,3.25044]
[1693933734811,0.06568715,25743.0,25742.0,3.2502]
[1693933735006,0.06568715,25743.0,25742.0,3.25026]
[1693933735214,0.06568715,25743.0,25742.0,3.24954]
[1693933735435,0.06568715,25743.0,25742.0,3.24984]
[1693933735819,0.06568715,25743.0,25742.0,3.24978]
[1693933736023,0.04568715,25743.0,25742.0,3.25122]
[1693933736202,0.06568715,25743.0,25742.0,3.17832]
[1693933736821,0.04568715,25743.0,25742.0,3.17832]
[1693933737033,0.06568715,25743.0,25742.0,3.17832]
[1693933744207,0.06568715,25743.0,25742.0,3.2523]
[1693933744409,0.06568715,25743.0,25742.0,3.25164]
[1693933744607,0.06568715,25743.0,25742.0,3.24798]
[1693933744815,0.06568715,25743.0,25742.0,3.24762]
[1693933745058,0.06568715,25743.0,25742.0,3.24744]
[1693933745258,0.06568715,25743.0,25742.0,3.25008]
[1693933745436,0.06568715,25743.0,25742.0,3.24684]
[1693933745639,0.06568715,25743.0,25742.0,3.24744]
[1693933745844,0.06568715,25743.0,25742.0,3.24546]
[1693933746141,0.06568715,25743.0,25742.0,3.24528]
[1693933746289,0.06568715,25743.0,25742.0,3.24426]
[1693933746495,0.06568715,25743.0,25742.0,3.17832]
[1693933750682,0.04568715,25743.0,25742.0,3.65712527]
[1693933750891,0.06568715,25743.0,25742.0,3.65028527]
[1693933751026,0.002,25743.0,25742.0,3.64788527]
[1693933751230,0.002,25743.0,25742.0,3.64776527]
[1693933751433,0.002,25743.0,25742.0,3.64794527]
[1693933751649,0.002,25743.0,25742.0,3.64716527]
[1693933751858,0.002,25743.0,25742.0,3.64368527]
[1693933752059,0.002,25743.0,25742.0,3.64314527]
[1693933752257,0.002,25743.0,25742.0,3.64308527]
[1693933752462,0.002,25743.0,25742.0,3.64722527]
[1693933752668,0.002,25743.0,25742.0,3.64704527]
[1693933752928,0.002,25743.0,25742.0,3.64728527]
[1693933753230,0.002,25743.0,25742.0,3.65220527]
[1693933753462,0.002,25743.0,25742.0,3.65142527]
[1693933753672,0.002,25743.0,25742.0,3.65064527]
[1693933753889,0.002,25743.0,25742.0,3.65022527]
[1693933754092,0.002,25743.0,25742.0,3.64992527]
[1693933754293,0.022,25743.0,25742.0,3.64500527]
[1693933754498,0.022,25743.0,25742.0,3.64128527]
[1693933754708,0.022,25743.0,25742.0,3.64104527]
[1693933754922,0.022,25743.0,25742.0,3.64044527]
[1693933755125,0.022,25743.0,25742.0,3.64020527]
[1693933755340,0.06364373,25743.0,25742.0,3.64008527]
[1693933755539,0.06364373,25743.0,25742.0,3.56496527]
[1693933764613,0.06364373,25743.0,25742.0,3.17832]
[1693933765967,0.06364373,25743.0,25742.0,2.27888]
[1693933766146,0.23668748,25743.0,25742.0,0.79694]
[1693933766350,0.23668748,25743.0,25742.0,0.02]
[1693933769875,0.23668748,25743.0,25742.0,0.79694]
[1693933772725,0.23668748,25743.0,25742.0,0.79760611]
[1693933778193,0.06364373,25743.0,25742.0,0.79760611]
[1693933780673,0.25354453,25743.0,25742.0,0.02066611]
[1693933781653,1.03045453,25743.0,25742.0,0.02066611]
[1693933784738,0.25354453,25743.0,25742.0,0.02066611]
[1693933790158,0.17354453,25743.0,25742.0,0.02066611]
[1693933790345,0.21422052,25743.0,25742.0,0.02066611]
[1693933798706,0.04067599,25743.0,25742.0,1.57454611]
[1693933798933,0.04067599,25743.0,25742.0,2.35148611]
[1693933802211,0.04067599,25743.0,25742.0,3.15398611]
[1693933802413,0.04067599,25743.0,25742.0,3.61965138]
[1693933802626,0.497267,25744.0,25742.0,3.96443138]
[1693933802890,0.497267,25744.0,25743.0,0.50914527]
[1693933803104,0.497267,25744.0,25743.0,2.92723527]
[1693933803277,0.497267,25744.0,25743.0,2.92549527]
[1693933803480,0.497267,25744.0,25743.0,2.92543527]
[1693933803711,0.497267,25744.0,25743.0,3.6255034]
[1693933803893,0.497267,25744.0,25743.0,3.6261034]
[1693933804039,0.497267,25744.0,25743.0,3.6510834]
[1693933804245,0.497267,25744.0,25743.0,3.6524634]
[1693933804462,0.497267,25744.0,25743.0,3.6512034]
[1693933804728,0.497267,25744.0,25743.0,3.6708634]
[1693933805050,0.497267,25744.0,25743.0,3.6695201]
[1693933805262,0.497267,25744.0,25743.0,3.6700001]
[1693933805441,0.497267,25744.0,25743.0,3.6672401]
[1693933805639,0.497267,25744.0,25743.0,3.6658601]
[1693933806026,0.497267,25744.0,25743.0,3.6655001]
[1693933806466,0.497267,25744.0,25743.0,3.6653801]
[1693933806662,0.497267,25744.0,25743.0,3.6654401]
[1693933807010,0.497267,25744.0,25743.0,3.6651401]
[1693933807222,0.497267,25744.0,25743.0,3.6643601]
[1693933807446,0.497267,25744.0,25743.0,3.6596201]
[1693933808037,0.497267,25744.0,25743.0,3.6640001]
[1693933808244,0.497267,25744.0,25743.0,3.6596801]
[1693933808371,0.497267,25744.0,25743.0,3.6591401]
[1693933808576,0.497267,25744.0,25743.0,3.6590201]
[1693933808777,0.497267,25744.0,25743.0,3.6616001]
[1693933808979,0.497267,25744.0,25743.0,3.6617201]
[1693933809247,0.497267,25744.0,25743.0,3.6634601]
[1693933809569,0.497267,25744.0,25743.0,3.6634001]
[1693933809774,0.497267,25744.0,25743.0,3.6651401]
[1693933809981,0.497267,25744.0,25743.0,3.6650801]
[1693933810182,0.497267,25744.0,25743.0,3.6649001]